fUSD/lending_fUSD_20250915
["ID","MTS","AMOUNT","RATE_DAILY","PERIOD"]
[385557757,1757896243772,-400.0,0.00027397,7]
[385557759,1757896243781,-503.01,0.00027397,7]
[385557761,1757896243791,-495.77,0.00027397,7]
[385557763,1757896243801,-400.0,0.00027397,7]
[385557765,1757896243811,-400.0,0.00027397,7]
[385557767,1757896243820,-410.17,0.00027397,7]
[385557769,1757896243830,-411.50985163,0.00027397,7]
[385557771,1757896243839,-423.61,0.00027397,7]
[385557773,1757896243849,-451.52,0.00027397,7]
[385557775,1757896243858,-399.80538622,0.00027397,7]
[385557777,1757896243868,-400.0,0.00027397,7]
[385557779,1757896243878,-400.0,0.00027397,7]
[385557781,1757896243887,-400.0,0.00027397,7]
[385557783,1757896243897,-400.0,0.00027397,7]
[385557785,1757896243906,-487.51,0.00027397,7]
[385557787,1757896243915,-400.0,0.00027397,7]
[385557789,1757896243925,-414.31,0.00027397,7]
[385557791,1757896243935,-400.0,0.00027397,7]
[385557793,1757896243944,-400.0,0.00027397,7]
[385557804,1757896244044,-400.0,0.00027397,7]
[385557807,1757896244057,-400.0,0.00027397,7]
[385557809,1757896244067,-424.7,0.00027397,7]
[385557811,1757896244076,-578.19,0.00027397,7]
[385557813,1757896244085,-400.0,0.00027397,7]
[385557815,1757896244094,-408.63,0.00027397,7]
[385557817,1757896244103,-406.18700424,0.00027397,7]
[385557819,1757896244112,-400.0,0.00027397,7]
[385557821,1757896244121,-486.67,0.00027397,7]
[385557823,1757896244130,-400.0,0.00027397,7]
[385557824,1757896244141,-662.4,0.00027397,7]
[385557826,1757896244150,-400.0,0.00027397,7]
[385557828,1757896244159,-400.0,0.00027397,7]
[385557830,1757896244168,-400.0,0.00027397,7]
[385557832,1757896244178,-400.0,0.00027397,7]
[385557834,1757896244187,-400.0,0.00027397,7]
[385557836,1757896244196,-609.25,0.00027397,7]
[385557838,1757896244205,-400.0,0.00027397,7]
[385557840,1757896244214,-400.0,0.00027397,7]
[385557842,1757896244223,-439.16,0.00027397,7]
[385557844,1757896244232,-505.29,0.00027397,7]
[385557846,1757896244242,-400.0,0.00027397,7]
[385557848,1757896244251,-400.0,0.00027397,7]
[385557850,1757896244260,-408.27,0.00027397,7]
[385557853,1757896244271,-594.83,0.00027397,7]
[385557854,1757896244281,-400.0,0.00027397,7]
[385557856,1757896244290,-400.0,0.00027397,7]
[385557859,1757896244299,-434.14,0.00027397,7]
[385557861,1757896244308,-400.0,0.00027397,7]
[385557863,1757896244317,-953.74,0.00027397,7]
[385557865,1757896244326,-456.22,0.00027397,7]
[385557867,1757896244335,-400.0,0.00027397,7]
[385557869,1757896244345,-400.0,0.00027397,7]
[385557871,1757896244354,-400.0,0.00027397,7]
[385557873,1757896244363,-400.0,0.00027397,7]
[385557875,1757896244373,-400.0,0.00027397,7]
[385557877,1757896244382,-619.33,0.00027397,7]
[385557878,1757896244391,-400.0,0.00027397,7]
[385557880,1757896244400,-420.59,0.00027397,7]
[385557882,1757896244409,-400.0,0.00027397,7]
[385557884,1757896244419,-517.24,0.00027397,7]
[385557886,1757896244428,-400.0,0.00027397,7]
[385557888,1757896244438,-400.0,0.00027397,7]
[385557890,1757896244447,-400.0,0.00027397,7]
[385557892,1757896244456,-400.0,0.00027397,7]
[385557894,1757896244466,-434.9,0.00027397,7]
[385557896,1757896244475,-400.0,0.00027397,7]
[385557898,1757896244485,-500.0,0.00027397,7]
[385557900,1757896244494,-500.0,0.00027397,7]
[385557902,1757896244503,-500.0,0.00027397,7]
[385557904,1757896244512,-550.7,0.00027397,7]
[385557906,1757896244521,-400.0,0.00027397,7]
[385557908,1757896244530,-400.0,0.00027397,7]
[385557910,1757896244540,-477.44,0.00027397,7]
[385557912,1757896244549,-688.02,0.00027397,7]
[385557914,1757896244559,-453.74,0.00027397,7]
[385557916,1757896244568,-497.89,0.00027397,7]
[385557918,1757896244577,-490.27,0.00027397,7]
[385557920,1757896244586,-400.0,0.00027397,7]
[385557922,1757896244599,-400.0,0.00027397,7]
[385557924,1757896244608,-500.0,0.00027397,7]
[385557926,1757896244616,-400.0,0.00027397,7]
[385557928,1757896244626,-400.0,0.00027397,7]
[385557930,1757896244635,-400.0,0.00027397,7]
[385557932,1757896244644,-422.52,0.00027397,7]
[385557934,1757896244654,-400.0,0.00027397,7]
[385557936,1757896244663,-400.0,0.00027397,7]
[385557938,1757896244672,-400.0,0.00027397,7]
[385557940,1757896244682,-400.0,0.00027397,7]
[385557942,1757896244691,-400.0,0.00027397,7]
[385557944,1757896244700,-559.14,0.00027397,7]
[385557946,1757896244709,-400.0,0.00027397,7]
[385557948,1757896244719,-400.0,0.00027397,7]
[385557950,1757896244728,-196.0307922,0.00027397,7]
[385557953,1757896244737,-400.0,0.00027397,7]
[385557955,1757896244747,-400.0,0.00027397,7]
[385557956,1757896244756,-400.0,0.00027397,7]
[385557958,1757896244765,-602.17,0.00027397,7]
[385557960,1757896244775,-400.0,0.00027397,7]
[385557962,1757896244783,-400.0,0.00027397,7]
[385557964,1757896244793,-411.22,0.00027397,7]
[385557967,1757896244802,-400.0,0.00027397,7]
[385557969,1757896244812,-400.0,0.00027397,7]
[385557970,1757896244821,-599.59,0.00027397,7]
[385557972,1757896244831,-400.0,0.00027397,7]
[385557974,1757896244840,-400.0,0.00027397,7]
[385557976,1757896244849,-424.71,0.00027397,7]
[385557978,1757896244859,-400.0,0.00027397,7]
[385557981,1757896244877,-400.0,0.00027397,7]
[385557984,1757896244887,-400.0,0.00027397,7]
[385557986,1757896244897,-400.0,0.00027397,7]
[385557988,1757896244906,-215.66939871,0.00027397,7]
[385557990,1757896244915,-400.0,0.00027397,7]
[385557992,1757896244925,-400.0,0.00027397,7]
[385557994,1757896244934,-400.0,0.00027397,7]
[385557996,1757896244943,-434.6,0.00027397,7]
[385557998,1757896244953,-412.83,0.00027397,7]
[385558000,1757896244962,-400.0,0.00027397,7]
[385558002,1757896244971,-400.0,0.00027397,7]
[385558004,1757896244980,-461.91,0.00027397,7]
[385558006,1757896244990,-400.0,0.00027397,7]
[385558008,1757896245004,-400.0,0.00027397,7]
[385558010,1757896245013,-400.0,0.00027397,7]
[385558012,1757896245022,-400.0,0.00027397,7]
[385558014,1757896245031,-400.0,0.00027397,7]
[385558016,1757896245041,-400.0,0.00027397,7]
[385558018,1757896245050,-400.0,0.00027397,7]
[385558020,1757896245059,-400.0,0.00027397,7]
[385558022,1757896245068,-400.0,0.00027397,7]
[385558024,1757896245078,-532.8,0.00027397,7]
[385558026,1757896245087,-400.0,0.00027397,7]
[385558028,1757896245097,-400.0,0.00027397,7]
[385558030,1757896245106,-400.0,0.00027397,7]
[385558033,1757896245126,-400.0,0.00027397,7]
[385558035,1757896245136,-483.61,0.00027397,7]
[385558037,1757896245145,-400.0,0.00027397,7]
[385558038,1757896245154,-400.0,0.00027397,7]
[385558040,1757896245164,-400.0,0.00027397,7]
[385558042,1757896245173,-400.0,0.00027397,2]
[385558044,1757896245182,-400.0,0.00027397,7]
[385558046,1757896245191,-400.0,0.00027397,7]
[385558048,1757896245201,-400.0,0.00027397,7]
[385558050,1757896245211,-400.0,0.00027397,7]
[385558052,1757896245220,-503.17,0.00027397,7]
[385558054,1757896245229,-400.0,0.00027397,7]
[385558056,1757896245239,-400.0,0.00027397,7]
[385558058,1757896245249,-400.0,0.00027397,7]
[385558061,1757896245260,-400.0,0.00027397,7]
[385558063,1757896245269,-400.0,0.00027397,7]
[385558064,1757896245279,-400.94,0.00027397,7]
[385558066,1757896245288,-400.0,0.00027397,7]
[385558068,1757896245297,-509.37,0.00027397,7]
[385558070,1757896245306,-400.0,0.00027397,7]
[385558072,1757896245315,-400.0,0.00027397,7]
[385558074,1757896245324,-719.28,0.00027397,7]
[385558076,1757896245333,-400.0,0.00027397,7]
[385558078,1757896245343,-400.0,0.00027397,7]
[385558080,1757896245352,-400.0,0.00027397,7]
[385558082,1757896245361,-400.0,0.00027397,7]
[385558084,1757896245371,-400.0,0.00027397,7]
[385558086,1757896245381,-400.0,0.00027397,7]
[385558088,1757896245391,-400.0,0.00027397,7]
[385558090,1757896245405,-400.0,0.00027397,7]
[385558091,1757896245418,-400.0,0.00027397,7]
[385558093,1757896245428,-400.0,0.00027397,7]
[385558095,1757896245438,-400.0,0.00027397,7]
[385558097,1757896245448,-644.97,0.00027397,7]
[385558099,1757896245459,-400.0,0.00027397,7]
[385558101,1757896245469,-400.0,0.00027397,7]
[385558103,1757896245480,-400.0,0.00027397,7]
[385558105,1757896245491,-421.82,0.00027397,7]
[385558107,1757896245501,-400.0,0.00027397,7]
[385558110,1757896245510,-400.0,0.00027397,7]
[385558112,1757896245519,-280.89707027,0.00027397,7]
[385558115,1757896245528,-406.42,0.00027397,7]
[385558118,1757896245538,-400.0,0.00027397,7]
[385558121,1757896245547,-300.0,0.00027397,7]
[385558124,1757896245556,-400.0,0.00027397,7]
[385558127,1757896245565,-400.0,0.00027397,7]
[385558131,1757896245575,-400.0,0.00027397,7]
[385558135,1757896245584,-487.75,0.00027397,7]
[385558138,1757896245595,-400.0,0.00027397,7]
[385558141,1757896245604,-400.0,0.00027397,7]
[385558144,1757896245613,-400.0,0.00027397,7]
[385558147,1757896245623,-400.0,0.00027397,7]
[385558149,1757896245632,-400.0,0.00027397,7]
[385558151,1757896245641,-362.54696263,0.00027397,7]
[385558152,1757896245651,-400.0,0.00027397,7]
[385558155,1757896245661,-448.59,0.00027397,7]
[385558158,1757896245670,-400.0,0.00027397,7]
[385558161,1757896245679,-400.0,0.00027397,7]
[385558164,1757896245688,-500.0,0.00027397,7]
[385558166,1757896245698,-400.0,0.00027397,7]
[385558170,1757896245707,-500.0,0.00027397,7]
[385558173,1757896245717,-400.0,0.00027397,7]
[385558176,1757896245726,-400.0,0.00027397,7]
[385558179,1757896245735,-400.0,0.00027397,7]
[385558182,1757896245744,-400.0,0.00027397,7]
[385558185,1757896245754,-400.0,0.00027397,7]
[385558187,1757896245763,-400.0,0.00027397,7]
[385558191,1757896245773,-400.0,0.00027397,7]
[385558194,1757896245783,-400.0,0.00027397,7]
[385558197,1757896245792,-400.0,0.00027397,7]
[385558200,1757896245801,-400.0,0.00027397,7]
[385558202,1757896245811,-443.17,0.00027397,7]
[385558204,1757896245820,-400.0,0.00027397,7]
[385558206,1757896245830,-400.0,0.00027397,7]
[385558208,1757896245839,-400.0,0.00027397,7]
[385558210,1757896245849,-408.34,0.00027397,7]
[385558212,1757896245859,-400.0,0.00027397,7]
[385558214,1757896245868,-250.74689406,0.00027397,7]
[385558216,1757896245878,-400.0,0.00027397,7]
[385558218,1757896245888,-862.0,0.00027397,7]
[385558220,1757896245898,-400.0,0.00027397,7]
[385558222,1757896245907,-400.0,0.00027397,7]
[385558224,1757896245916,-400.0,0.00027397,7]
[385558226,1757896245925,-435.84,0.00027397,7]
[385558228,1757896245935,-400.0,0.00027397,7]
[385558230,1757896245944,-400.0,0.00027397,7]
[385558232,1757896245953,-400.0,0.00027397,7]
[385558234,1757896245966,-400.0,0.00027397,7]
[385558236,1757896245975,-400.0,0.00027397,7]
[385558238,1757896245985,-400.0,0.00027397,7]
[385558240,1757896245997,-400.0,0.00027397,7]
[385558242,1757896246008,-400.0,0.00027397,7]
[385558244,1757896246019,-435.08,0.00027397,7]
[385558246,1757896246031,-400.0,0.00027397,7]
[385558248,1757896246042,-400.0,0.00027397,7]
[385558251,1757896246052,-400.0,0.00027397,7]
[385558253,1757896246062,-400.0,0.00027397,7]
[385558255,1757896246072,-400.0,0.00027397,7]
[385558257,1757896246082,-416.23152771,0.00027397,7]
[385558259,1757896246091,-400.0,0.00027397,7]
[385558261,1757896246101,-414.92309726,0.00027397,7]
[385558263,1757896246115,-400.0,0.00027397,7]
[385558264,1757896246124,-400.0,0.00027397,7]
[385558267,1757896246134,-400.0,0.00027397,7]
[385558268,1757896246150,-400.0,0.00027397,7]
[385558271,1757896246162,-400.0,0.00027397,7]
[385558273,1757896246171,-750.24,0.00027397,7]
[385558275,1757896246181,-611.09,0.00027397,7]
[385558277,1757896246190,-400.0,0.00027397,7]
[385558279,1757896246199,-400.0,0.00027397,7]
[385558281,1757896246208,-400.0,0.00027397,7]
[385558283,1757896246218,-400.0,0.00027397,7]
[385558285,1757896246227,-597.42,0.00027397,7]
[385558287,1757896246236,-400.0,0.00027397,7]
[385558288,1757896246246,-400.0,0.00027397,7]
[385558291,1757896246255,-517.32,0.00027397,7]
[385558293,1757896246265,-400.0,0.00027397,7]
[385558295,1757896246274,-400.0,0.00027397,7]
[385558297,1757896246284,-400.0,0.00027397,7]
[385558299,1757896246293,-400.0,0.00027397,7]
[385558301,1757896246303,-400.0,0.00027397,7]
[385558303,1757896246313,-400.0,0.00027397,7]
[385558305,1757896246322,-400.0,0.00027397,7]
[385558307,1757896246332,-400.0,0.00027397,7]
[385558309,1757896246341,-400.0,0.00027397,7]
[385558311,1757896246351,-400.0,0.00027397,7]
[385558313,1757896246360,-479.63,0.00027397,7]
[385558315,1757896246370,-414.96,0.00027397,7]
[385558317,1757896246379,-542.02,0.00027397,7]
[385558319,1757896246389,-400.0,0.00027397,7]
[385558321,1757896246398,-400.0,0.00027397,7]
[385558323,1757896246407,-400.0,0.00027397,7]
[385558325,1757896246417,-400.0,0.00027397,7]
[385558327,1757896246429,-409.18,0.00027397,7]
[385558329,1757896246438,-454.34,0.00027397,7]
[385558331,1757896246447,-440.69,0.00027397,7]
[385558333,1757896246456,-400.0,0.00027397,7]
[385558335,1757896246466,-400.0,0.00027397,7]
[385558337,1757896246475,-400.0,0.00027397,7]
[385558339,1757896246484,-400.0,0.00027397,7]
[385558341,1757896246493,-400.0,0.00027397,7]
[385558343,1757896246503,-400.0,0.00027397,7]
[385558345,1757896246513,-400.0,0.00027397,7]
[385558347,1757896246522,-400.0,0.00027397,7]
[385558349,1757896246533,-400.0,0.00027397,7]
[385558351,1757896246542,-400.0,0.00027397,7]
[385558353,1757896246552,-440.84,0.00027397,7]
[385558355,1757896246561,-400.0,0.00027397,7]
[385558357,1757896246571,-415.65617934,0.00027397,7]
[385558359,1757896246580,-400.0,0.00027397,7]
[385558361,1757896246589,-400.0,0.00027397,7]
[385558363,1757896246602,-400.0,0.00027397,7]
[385558365,1757896246611,-400.0,0.00027397,7]
[385558367,1757896246620,-400.0,0.00027397,7]
[385558369,1757896246629,-402.64897228,0.00027397,7]
[385558370,1757896246638,-400.0,0.00027397,7]
[385558371,1757896246648,-157.33252336,0.00027397,7]
[385558372,1757896246657,-400.0,0.00027397,7]
[385558373,1757896246666,-400.0,0.00027397,7]
[385558374,1757896246676,-400.0,0.00027397,7]
[385558375,1757896246685,-400.0,0.00027397,7]
[385558376,1757896246694,-185.90683232,0.00027397,7]
[385558377,1757896246703,-400.0,0.00027397,7]
[385558378,1757896246712,-400.0,0.00027397,7]
[385558379,1757896246722,-415.55,0.00027397,7]
[385558380,1757896246731,-400.0,0.00027397,7]
[385558381,1757896246741,-400.0,0.00027397,7]
[385558382,1757896246750,-868.99,0.00027397,7]
[385558383,1757896246759,-400.0,0.00027397,7]
[385558384,1757896246769,-400.0,0.00027397,7]
[385558385,1757896246779,-400.0,0.00027397,7]
[385558386,1757896246788,-476.65,0.00027397,7]
[385558387,1757896246798,-400.0,0.00027397,7]
[385558388,1757896246809,-400.0,0.00027397,7]
[385558389,1757896246818,-508.59,0.00027397,7]
[385558390,1757896246827,-400.0,0.00027397,7]
[385558391,1757896246836,-457.03,0.00027397,7]
[385558393,1757896246847,-400.0,0.00027397,7]
[385558395,1757896246857,-400.0,0.00027397,7]
[385558397,1757896246867,-400.0,0.00027397,7]
[385558398,1757896246876,-663.58,0.00027397,7]
[385558399,1757896246885,-400.0,0.00027397,7]
[385558400,1757896246894,-400.0,0.00027397,7]
[385558401,1757896246903,-400.0,0.00027397,7]
[385558402,1757896246912,-400.0,0.00027397,7]
[385558403,1757896246921,-704.27,0.00027397,7]
[385558404,1757896246931,-400.0,0.00027397,7]
[385558405,1757896246939,-213.03960979,0.00027397,7]
[385558406,1757896246948,-400.0,0.00027397,7]
[385558407,1757896246958,-738.85,0.00027397,7]
[385558408,1757896246966,-400.0,0.00027397,7]
[385558409,1757896246975,-400.0,0.00027397,7]
[385558410,1757896246985,-421.86,0.00027397,7]
[385558411,1757896246997,-400.0,0.00027397,7]
[385558413,1757896247007,-400.0,0.00027397,7]
[385558415,1757896247016,-400.0,0.00027397,7]
[385558417,1757896247025,-400.0,0.00027397,7]
[385558419,1757896247035,-476.0,0.00027397,7]
[385558421,1757896247044,-400.0,0.00027397,7]
[385558423,1757896247053,-400.0,0.00027397,7]
[385558425,1757896247063,-433.39,0.00027397,7]
[385558427,1757896247072,-503.04,0.00027397,7]
[385558429,1757896247082,-400.0,0.00027397,7]
[385558431,1757896247091,-400.0,0.00027397,7]
[385558433,1757896247100,-400.0,0.00027397,7]
[385558435,1757896247110,-400.0,0.00027397,7]
[385558437,1757896247119,-421.42,0.00027397,7]
[385558439,1757896247129,-400.0,0.00027397,7]
[385558441,1757896247138,-165.786644,0.00027397,7]
[385558443,1757896247147,-400.0,0.00027397,7]
[385558445,1757896247156,-500.0,0.00027397,2]
[385558447,1757896247165,-608.74,0.00027397,7]
[385558449,1757896247175,-400.0,0.00027397,7]
[385558451,1757896247184,-400.0,0.00027397,7]
[385558453,1757896247194,-400.0,0.00027397,7]
[385558455,1757896247203,-400.0,0.00027397,7]
[385558457,1757896247212,-542.5,0.00027397,7]
[385558459,1757896247222,-400.0,0.00027397,7]
[385558461,1757896247231,-577.36,0.00027397,7]
[385558462,1757896247240,-400.0,0.00027397,7]
[385558464,1757896247250,-708.11,0.00027397,7]
[385558467,1757896247259,-400.0,0.00027397,7]
[385558469,1757896247269,-400.0,0.00027397,7]
[385558471,1757896247278,-400.0,0.00027397,7]
[385558473,1757896247287,-400.0,0.00027397,7]
[385558474,1757896247297,-400.0,0.00027397,7]
[385558477,1757896247307,-400.0,0.00027397,7]
[385558479,1757896247317,-400.0,0.00027397,7]
[385558481,1757896247326,-400.0,0.00027397,7]
[385558482,1757896247338,-400.0,0.00027397,7]
[385558485,1757896247347,-400.0,0.00027397,7]
[385558487,1757896247358,-414.17,0.00027397,7]
[385558489,1757896247367,-618.29,0.00027397,7]
[385558490,1757896247376,-400.0,0.00027397,7]
[385558492,1757896247385,-410.90131672,0.00027397,7]
[385558494,1757896247395,-400.0,0.00027397,7]
[385558496,1757896247404,-1270.02,0.00027397,7]
[385558498,1757896247414,-400.0,0.00027397,7]
[385558500,1757896247424,-400.0,0.00027397,7]
[385558502,1757896247433,-432.82,0.00027397,7]
[385558504,1757896247442,-400.0,0.00027397,7]
[385558507,1757896247452,-400.0,0.00027397,7]
[385558509,1757896247465,-400.0,0.00027397,7]
[385558511,1757896247474,-400.0,0.00027397,7]
[385558513,1757896247483,-400.0,0.00027397,7]
[385558515,1757896247492,-407.7741053,0.00027397,7]
[385558517,1757896247501,-400.0,0.00027397,7]
[385558519,1757896247510,-400.0,0.00027397,7]
[385558521,1757896247519,-400.0,0.00027397,7]
[385558523,1757896247529,-400.0,0.00027397,7]
[385558525,1757896247538,-443.55,0.00027397,7]
[385558527,1757896247547,-400.0,0.00027397,7]
[385558529,1757896247556,-636.68,0.00027397,7]
[385558531,1757896247566,-1063.85,0.00027397,7]
[385558533,1757896247575,-400.0,0.00027397,7]
[385558535,1757896247584,-2032.55,0.00027397,7]
[385558537,1757896247594,-798.17,0.00027397,7]
[385558539,1757896247604,-1108.82,0.00027397,7]
[385558541,1757896247613,-469.72,0.00027397,7]
[385558543,1757896247622,-405.41,0.00027397,7]
[385558545,1757896247631,-441.56,0.00027397,7]
[385558547,1757896247640,-400.0,0.00027397,7]
[385558549,1757896247650,-400.0,0.00027397,7]
[385558551,1757896247659,-684.72,0.00027397,7]
[385558553,1757896247669,-521.23,0.00027397,7]
[385558555,1757896247678,-479.21,0.00027397,7]
[385558557,1757896247687,-400.0,0.00027397,7]
[385558559,1757896247696,-899.03,0.00027397,7]
[385558561,1757896247706,-400.0,0.00027397,7]
[385558563,1757896247715,-400.0,0.00027397,7]
[385558565,1757896247724,-400.0,0.00027397,7]
[385558567,1757896247734,-400.0,0.00027397,7]
[385558569,1757896247744,-400.0,0.00027397,7]
[385558571,1757896247754,-400.0,0.00027397,7]
[385558573,1757896247764,-404.0,0.00027397,7]
[385558575,1757896247774,-400.0,0.00027397,7]
[385558577,1757896247784,-1490.34,0.00027397,7]
[385558579,1757896247794,-663.85,0.00027397,7]
[385558581,1757896247804,-400.0,0.00027397,7]
[385558583,1757896247814,-612.23,0.00027397,7]
[385558585,1757896247824,-400.0,0.00027397,7]
[385558587,1757896247834,-817.36,0.00027397,7]
[385558589,1757896247844,-417.7,0.00027397,7]
[385558592,1757896247855,-400.0,0.00027397,7]
[385558594,1757896247865,-400.0,0.00027397,7]
[385558596,1757896247875,-503.26,0.00027397,7]
[385558598,1757896247884,-400.0,0.00027397,7]
[385558600,1757896247894,-585.73,0.00027397,7]
[385558602,1757896247904,-878.06,0.00027397,7]
[385558604,1757896247913,-836.15,0.00027397,7]
[385558606,1757896247923,-535.44,0.00027397,7]
[385558608,1757896247933,-448.04,0.00027397,7]
[385558610,1757896247942,-525.1,0.00027397,7]
[385558612,1757896247952,-400.0,0.00027397,7]
[385558614,1757896247962,-400.0,0.00027397,7]
[385558616,1757896247972,-400.0,0.00027397,7]
[385558618,1757896247982,-400.0,0.00027397,7]
[385558620,1757896247992,-422.25,0.00027397,7]
[385558622,1757896248005,-400.0,0.00027397,7]
[385558624,1757896248015,-400.0,0.00027397,7]
[385558627,1757896248025,-948.51,0.00027397,7]
[385558628,1757896248035,-400.0,0.00027397,7]
[385558631,1757896248044,-400.0,0.00027397,7]
[385558633,1757896248054,-400.0,0.00027397,7]
[385558635,1757896248064,-400.0,0.00027397,7]
[385558637,1757896248075,-400.0,0.00027397,7]
[385558639,1757896248085,-1730.26,0.00027397,7]
[385558641,1757896248094,-400.0,0.00027397,7]
[385558643,1757896248103,-400.0,0.00027397,7]
[385558645,1757896248113,-400.0,0.00027397,7]
[385558647,1757896248123,-649.75,0.00027397,7]
[385558649,1757896248134,-400.0,0.00027397,7]
[385558651,1757896248144,-400.0,0.00027397,7]
[385558653,1757896248153,-400.0,0.00027397,7]
[385558655,1757896248163,-528.29,0.00027397,7]
[385558657,1757896248173,-2048.8,0.00027397,7]
[385558659,1757896248182,-400.0,0.00027397,7]
[385558661,1757896248192,-839.19,0.00027397,7]
[385558664,1757896248202,-400.0,0.00027397,7]
[385558666,1757896248211,-400.0,0.00027397,7]
[385558668,1757896248221,-400.0,0.00027397,7]
[385558670,1757896248231,-400.0,0.00027397,7]
[385558672,1757896248241,-400.0,0.00027397,7]
[385558674,1757896248251,-465.55,0.00027397,7]
[385558676,1757896248260,-400.0,0.00027397,7]
[385558678,1757896248270,-400.0,0.00027397,7]
[385558680,1757896248279,-400.0,0.00027397,7]
[385558682,1757896248289,-400.0,0.00027397,7]
[385558684,1757896248299,-400.0,0.00027397,7]
[385558686,1757896248309,-400.0,0.00027397,7]
[385558688,1757896248319,-400.0,0.00027397,7]
[385558690,1757896248329,-400.0,0.00027397,7]
[385558692,1757896248339,-400.0,0.00027397,7]
[385558694,1757896248349,-405.186486,0.00027397,7]
[385558696,1757896248359,-659.38,0.00027397,7]
[385558699,1757896248369,-400.0,0.00027397,7]
[385558701,1757896248380,-452.43,0.00027397,7]
[385558703,1757896248389,-455.1,0.00027397,7]
[385558705,1757896248399,-468.35,0.00027397,7]
[385558706,1757896248412,-400.0,0.00027397,7]
[385558708,1757896248421,-400.0,0.00027397,7]
[385558711,1757896248432,-499.54,0.00027397,7]
[385558713,1757896248441,-400.0,0.00027397,7]
[385558715,1757896248451,-400.0,0.00027397,7]
[385558717,1757896248462,-400.0,0.00027397,7]
[385558719,1757896248471,-639.71,0.00027397,7]
[385558721,1757896248481,-400.0,0.00027397,7]
[385558723,1757896248491,-414.25,0.00027397,7]
[385558725,1757896248501,-400.0,0.00027397,7]
[385558727,1757896248510,-400.0,0.00027397,7]
[385558729,1757896248520,-928.08,0.00027397,7]
[385558731,1757896248530,-965.12,0.00027397,7]
[385558733,1757896248540,-400.0,0.00027397,7]
[385558735,1757896248550,-497.27,0.00027397,7]
[385558737,1757896248559,-1308.73,0.00027397,5]
[385558739,1757896248569,-458.37,0.00027397,7]
[385558742,1757896248579,-400.0,0.00027397,7]
[385558744,1757896248589,-400.0,0.00027397,7]
[385558746,1757896248598,-674.8,0.00027397,7]
[385558748,1757896248608,-400.0,0.00027397,7]
[385558750,1757896248618,-1388.7,0.00027397,7]
[385558752,1757896248628,-400.0,0.00027397,7]
[385558754,1757896248637,-1237.64,0.00027397,7]
[385558756,1757896248648,-400.0,0.00027397,7]
[385558758,1757896248657,-400.0,0.00027397,7]
[385558760,1757896248668,-400.0,0.00027397,7]
[385558762,1757896248677,-1000.0,0.00027397,7]
[385558764,1757896248686,-400.0,0.00027397,7]